[Event "*** Titled Tuesday Blitz"]
[Site "Chess.com"]
[Date "2020.01.07"]
[Round "4"]
[White "Sashadav97"]
[Black "FairChess_on_YouTube"]
[Result "0-1"]
[WhiteElo "2580"]
[BlackElo "2991"]
[TimeControl "180+2"]
[EndTime "13:54:31 PST"]
[Termination "FairChess_on_YouTube won by resignation"]

1. d4 {[%clk 0:03:01.9]} 1... g6 {[%clk 0:03:00.5]} 2. c4 {[%clk 0:02:58.3]}
2... Bg7 {[%clk 0:03:00.6]} 3. e4 {[%clk 0:02:59.8]} 3... d6 {[%clk 0:03:01.4]}
4. Nf3 {[%clk 0:03:00]} 4... Bg4 {[%clk 0:03:01.2]} 5. Be2 {[%clk 0:02:58.6]}
5... Nc6 {[%clk 0:02:58.4]} 6. Nbd2 {[%clk 0:02:59.3]} 6... e5 {[%clk
0:02:51.4]} 7. d5 {[%clk 0:02:59.4]} 7... Nce7 {[%clk 0:02:52.2]} 8. h3 {[%clk
0:02:59.3]} 8... Bd7 {[%clk 0:02:52.6]} 9. c5 {[%clk 0:02:54.6]} 9... Nf6 {[%clk
0:02:47]} 10. O-O {[%clk 0:02:45.4]} 10... O-O {[%clk 0:02:47.9]} 11. Qc2 {[%clk
0:02:46.8]} 11... Rc8 {[%clk 0:02:36.7]} 12. Qb3 {[%clk 0:02:27.3]} 12... b6
{[%clk 0:02:30.3]} 13. c6 {[%clk 0:02:27.4]} 13... Be8 {[%clk 0:02:31.4]} 14.
Qa3 {[%clk 0:02:15.2]} 14... a5 {[%clk 0:02:26.7]} 15. b4 {[%clk 0:02:12.4]}
15... Ra8 {[%clk 0:02:26.5]} 16. bxa5 {[%clk 0:02:13.1]} 16... Rxa5 {[%clk
0:02:26.9]} 17. Qb4 {[%clk 0:02:14.6]} 17... Nh5 {[%clk 0:02:20.4]} 18. Nb3
{[%clk 0:02:13.1]} 18... Ra8 {[%clk 0:02:19.6]} 19. g3 {[%clk 0:02:01]} 19... h6
{[%clk 0:02:18]} 20. Nh4 {[%clk 0:01:33.9]} 20... f5 {[%clk 0:02:17.3]} 21. Kh2
{[%clk 0:01:00.2]} 21... fxe4 {[%clk 0:02:09.2]} 22. Qxe4 {[%clk 0:00:55.9]}
22... Nf6 {[%clk 0:02:08.4]} 23. Qc2 {[%clk 0:00:51.2]} 23... Nfxd5 {[%clk
0:02:07.7]} 24. Bf3 {[%clk 0:00:42.6]} 24... g5 {[%clk 0:02:00.8]} 25. Nf5
{[%clk 0:00:31.1]} 25... Bg6 {[%clk 0:01:31.7]} 26. Bxd5+ {[%clk 0:00:20.7]}
26... Nxd5 {[%clk 0:01:30.9]} 27. Nxh6+ {[%clk 0:00:22.2]} 27... Kh7 {[%clk
0:01:32.1]} 28. Qd2 {[%clk 0:00:23.8]} 28... Kxh6 {[%clk 0:01:17.7]} 29. Qxd5
{[%clk 0:00:24.5]} 29... Kh7 {[%clk 0:01:19.2]} 30. Qd2 {[%clk 0:00:23.7]} 30...
Rf5 {[%clk 0:01:14.3]} 31. a4 {[%clk 0:00:23.5]} 31... Qf6 {[%clk 0:01:13.3]}
32. Qe2 {[%clk 0:00:20.8]} 32... Rf8 {[%clk 0:01:12.4]} 33. Ra2 {[%clk
0:00:21.5]} 33... d5 {[%clk 0:01:03.8]} 34. a5 {[%clk 0:00:22.5]} 34... bxa5
{[%clk 0:01:04.6]} 35. Nxa5 {[%clk 0:00:23.5]} 35... Rf3 {[%clk 0:01:01.6]} 36.
Ba3 {[%clk 0:00:24]} 36... Rf7 {[%clk 0:00:57.9]} 37. Bc5 {[%clk 0:00:25.5]}
37... g4 {[%clk 0:00:55.5]} 38. hxg4 {[%clk 0:00:25.2]} 38... Be4 {[%clk
0:00:55.9]} 39. Rh1 {[%clk 0:00:23.1]} 39... Rc3 {[%clk 0:00:44.4]} 40. Bb4
{[%clk 0:00:18.8]} 40... Qh6+ {[%clk 0:00:43.9]} 0-1

[Event "*** Titled Tuesday Blitz"]
[Site "Chess.com"]
[Date "2020.01.07"]
[Round "4"]
[White "kallerotmg"]
[Black "ExcitingTrap"]
[Result "0-1"]
[WhiteElo "2139"]
[BlackElo "2314"]
[TimeControl "180+2"]
[EndTime "13:54:33 PST"]
[Termination "ExcitingTrap won by checkmate"]

1. e4 {[%clk 0:03:01.9]} 1... e6 {[%clk 0:03:01.1]} 2. d4 {[%clk 0:03:02.9]}
2... d5 {[%clk 0:03:02.6]} 3. Nd2 {[%clk 0:03:04.8]} 3... Nf6 {[%clk 0:03:03.6]}
4. e5 {[%clk 0:03:06.2]} 4... Nfd7 {[%clk 0:03:04.9]} 5. Bd3 {[%clk 0:03:07.8]}
5... c5 {[%clk 0:03:06.6]} 6. c3 {[%clk 0:03:08.9]} 6... Nc6 {[%clk 0:03:08.2]}
7. Ne2 {[%clk 0:03:08.5]} 7... cxd4 {[%clk 0:03:06.9]} 8. cxd4 {[%clk
0:03:10.4]} 8... f6 {[%clk 0:03:08.4]} 9. exf6 {[%clk 0:03:07.6]} 9... Nxf6
{[%clk 0:03:09.3]} 10. O-O {[%clk 0:03:09.3]} 10... Bd6 {[%clk 0:03:10.7]} 11.
Nf3 {[%clk 0:03:10.7]} 11... Qc7 {[%clk 0:03:12.4]} 12. Bg5 {[%clk 0:03:10.9]}
12... O-O {[%clk 0:03:12.9]} 13. Rc1 {[%clk 0:03:06.3]} 13... Bd7 {[%clk
0:03:13.7]} 14. Qc2 {[%clk 0:03:06.7]} 14... h6 {[%clk 0:03:09.9]} 15. Bh4
{[%clk 0:03:07.9]} 15... Nh5 {[%clk 0:03:11.5]} 16. Bh7+ {[%clk 0:03:08.4]}
16... Kh8 {[%clk 0:03:11.3]} 17. Bg6 {[%clk 0:02:41.7]} 17... Rxf3 {[%clk
0:03:10.7]} 18. Bxh5 {[%clk 0:00:48.6]} 18... Rff8 {[%clk 0:03:10.5]} 19. Bg3
{[%clk 0:00:45.5]} 19... Bxg3 {[%clk 0:03:10.4]} 20. hxg3 {[%clk 0:00:47.4]}
20... e5 {[%clk 0:03:00.1]} 21. dxe5 {[%clk 0:00:44.9]} 21... Qxe5 {[%clk
0:03:02]} 22. Bg6 {[%clk 0:00:41.6]} 22... Bf5 {[%clk 0:02:55.6]} 23. Bxf5
{[%clk 0:00:37.5]} 23... Rxf5 {[%clk 0:02:57.5]} 24. Rfe1 {[%clk 0:00:20.1]}
24... Nb4 {[%clk 0:02:42.9]} 25. Qd2 {[%clk 0:00:20.4]} 25... Qd6 {[%clk
0:02:37.9]} 26. a3 {[%clk 0:00:20.1]} 26... Nc6 {[%clk 0:02:38]} 27. Nf4 {[%clk
0:00:18.9]} 27... Raf8 {[%clk 0:02:29.5]} 28. Re6 {[%clk 0:00:19.7]} 28... Qd7
{[%clk 0:02:27.6]} 29. Ng6+ {[%clk 0:00:18.7]} 29... Kg8 {[%clk 0:02:27]} 30.
Nxf8 {[%clk 0:00:18.6]} 30... Rxf8 {[%clk 0:02:28.7]} 31. Re3 {[%clk 0:00:16.9]}
31... d4 {[%clk 0:02:24]} 32. Rf3 {[%clk 0:00:16.9]} 32... Re8 {[%clk
0:02:25.4]} 33. Re1 {[%clk 0:00:16.6]} 33... Ne5 {[%clk 0:02:22.2]} 34. Rf4
{[%clk 0:00:16.4]} 34... Nc6 {[%clk 0:02:07.8]} 35. Rfe4 {[%clk 0:00:14.1]}
35... Rf8 {[%clk 0:02:04.5]} 36. b4 {[%clk 0:00:13]} 36... a6 {[%clk 0:02:03.2]}
37. Qa2+ {[%clk 0:00:14]} 37... Kh8 {[%clk 0:02:01.2]} 38. Qe6 {[%clk 0:00:15]}
38... Qd8 {[%clk 0:01:49.3]} 39. Rg4 {[%clk 0:00:12.4]} 39... d3 {[%clk
0:01:40.2]} 40. Qg6 {[%clk 0:00:12.5]} 40... Qd7 {[%clk 0:01:30.6]} 41. Rd1
{[%clk 0:00:13.5]} 41... Ne5 {[%clk 0:01:31.4]} 42. Qe4 {[%clk 0:00:07.2]} 42...
Qxg4 {[%clk 0:01:21.2]} 43. Qxg4 {[%clk 0:00:08]} 43... Nxg4 {[%clk 0:01:22.7]}
44. Rxd3 {[%clk 0:00:09.7]} 44... Nxf2 {[%clk 0:01:21.5]} 45. Rd7 {[%clk
0:00:11.2]} 45... Ng4 {[%clk 0:01:09.9]} 46. Rxb7 {[%clk 0:00:11.9]} 46... Rc8
{[%clk 0:01:10.3]} 47. Rb6 {[%clk 0:00:11.1]} 47... Rc1# {[%clk 0:01:11.2]} 0-1

[Event "*** Titled Tuesday Blitz"]
[Site "Chess.com"]
[Date "2020.01.07"]
[Round "4"]
[White "Durarbayli"]
[Black "viktorskliarov"]
[Result "1/2-1/2"]
[WhiteElo "2841"]
[BlackElo "2581"]
[TimeControl "180+2"]
[EndTime "13:54:38 PST"]
[Termination "Game drawn by repetition"]

1. c4 {[%clk 0:03:01.9]} 1... e5 {[%clk 0:02:51.3]} 2. g3 {[%clk 0:02:58.3]}
2... Nf6 {[%clk 0:02:52.2]} 3. Bg2 {[%clk 0:02:59.3]} 3... c6 {[%clk 0:02:53.5]}
4. d4 {[%clk 0:02:56.3]} 4... exd4 {[%clk 0:02:54.7]} 5. Qxd4 {[%clk 0:02:57]}
5... Na6 {[%clk 0:02:56.2]} 6. Nf3 {[%clk 0:02:52.5]} 6... Bc5 {[%clk 0:02:57]}
7. Qe5+ {[%clk 0:02:52.8]} 7... Be7 {[%clk 0:02:58]} 8. O-O {[%clk 0:02:52.4]}
8... O-O {[%clk 0:02:58.9]} 9. b3 {[%clk 0:02:41.3]} 9... Re8 {[%clk 0:02:58.6]}
10. Qb2 {[%clk 0:02:28.8]} 10... d5 {[%clk 0:02:57.3]} 11. Rd1 {[%clk
0:02:28.4]} 11... Qb6 {[%clk 0:02:54.9]} 12. Be3 {[%clk 0:02:26.6]} 12... Bc5
{[%clk 0:02:55]} 13. Bxc5 {[%clk 0:02:27.3]} 13... Nxc5 {[%clk 0:02:47.7]} 14.
cxd5 {[%clk 0:02:21.2]} 14... Nxd5 {[%clk 0:02:41.7]} 15. Na3 {[%clk 0:02:19]}
15... Na4 {[%clk 0:02:24.6]} 16. Qc2 {[%clk 0:01:21]} 16... Nac3 {[%clk
0:02:03.2]} 17. Re1 {[%clk 0:01:12.4]} 17... Ne4 {[%clk 0:01:46]} 18. e3 {[%clk
0:01:10.5]} 18... Nb4 {[%clk 0:01:35.8]} 19. Qe2 {[%clk 0:01:03.3]} 19... Be6
{[%clk 0:01:30]} 20. Nd4 {[%clk 0:00:58.6]} 20... Bd5 {[%clk 0:01:28.7]} 21. Nc4
{[%clk 0:00:50.5]} 21... Bxc4 {[%clk 0:01:28.8]} 22. bxc4 {[%clk 0:00:51.3]}
22... Rad8 {[%clk 0:01:23.2]} 23. a3 {[%clk 0:00:44.2]} 23... Na6 {[%clk
0:01:21.1]} 24. Qg4 {[%clk 0:00:26.9]} 24... Nf6 {[%clk 0:01:18.8]} 25. Qg5
{[%clk 0:00:25.6]} 25... h6 {[%clk 0:01:17.4]} 26. Qf4 {[%clk 0:00:26.3]} 26...
Qc7 {[%clk 0:01:08.3]} 27. Qxc7 {[%clk 0:00:26]} 27... Nxc7 {[%clk 0:01:09.2]}
28. Rab1 {[%clk 0:00:27.2]} 28... c5 {[%clk 0:01:05.3]} 29. Rxb7 {[%clk
0:00:23.1]} 29... cxd4 {[%clk 0:01:05.3]} 30. Rxc7 {[%clk 0:00:23.7]} 30... dxe3
{[%clk 0:01:06.2]} 31. Rxe3 {[%clk 0:00:21.5]} 31... Rd1+ {[%clk 0:00:55.1]} 32.
Bf1 {[%clk 0:00:22.6]} 32... Rxe3 {[%clk 0:00:54.6]} 33. fxe3 {[%clk 0:00:24.5]}
33... Ne4 {[%clk 0:00:48]} 34. Kg2 {[%clk 0:00:23.7]} 34... f5 {[%clk
0:00:46.5]} 35. c5 {[%clk 0:00:22.3]} 35... Rd2+ {[%clk 0:00:41.9]} 36. Kg1
{[%clk 0:00:23.4]} 36... Rd1 {[%clk 0:00:42.9]} 37. Kg2 {[%clk 0:00:14.4]} 37...
Rd2+ {[%clk 0:00:43.5]} 38. Kg1 {[%clk 0:00:15.6]} 38... Rd1 {[%clk 0:00:44.7]}
39. Kg2 {[%clk 0:00:12.9]} 1/2-1/2

[Event "*** Titled Tuesday Blitz"]
[Site "Chess.com"]
[Date "2020.01.07"]
[Round "4"]
[White "Proteuo"]
[Black "TwentyHoursADay"]
[Result "0-1"]
[WhiteElo "2310"]
[BlackElo "2423"]
[TimeControl "180+2"]
[EndTime "13:54:46 PST"]
[Termination "TwentyHoursADay won by checkmate"]

1. e4 {[%clk 0:03:01.9]} 1... c5 {[%clk 0:03:01.2]} 2. Ne2 {[%clk 0:03:01]} 2...
e6 {[%clk 0:03:01.9]} 3. g3 {[%clk 0:03:01.2]} 3... d5 {[%clk 0:02:56.3]} 4. Bg2
{[%clk 0:02:59.4]} 4... dxe4 {[%clk 0:02:54.1]} 5. Bxe4 {[%clk 0:03:00.4]} 5...
Nf6 {[%clk 0:02:55.3]} 6. Bg2 {[%clk 0:03:01.9]} 6... Nc6 {[%clk 0:02:55.7]} 7.
O-O {[%clk 0:03:02.6]} 7... Be7 {[%clk 0:02:56.3]} 8. c3 {[%clk 0:03:01.7]} 8...
O-O {[%clk 0:02:49.8]} 9. d4 {[%clk 0:03:02.7]} 9... Bd7 {[%clk 0:02:28.2]} 10.
h3 {[%clk 0:02:58.6]} 10... Qc8 {[%clk 0:02:23]} 11. Kh2 {[%clk 0:02:54.6]}
11... Rd8 {[%clk 0:02:23.8]} 12. Be3 {[%clk 0:02:51.6]} 12... c4 {[%clk
0:02:15.2]} 13. Nd2 {[%clk 0:02:49.1]} 13... b5 {[%clk 0:01:55.4]} 14. f4 {[%clk
0:02:48.1]} 14... Nd5 {[%clk 0:01:53.6]} 15. Bg1 {[%clk 0:02:47.1]} 15... Rb8
{[%clk 0:01:39.7]} 16. a3 {[%clk 0:02:45.2]} 16... a5 {[%clk 0:01:40.1]} 17. a4
{[%clk 0:02:31.1]} 17... Qa6 {[%clk 0:01:23.7]} 18. axb5 {[%clk 0:02:21.1]}
18... Qxb5 {[%clk 0:01:25.6]} 19. Ra2 {[%clk 0:02:19.7]} 19... h5 {[%clk
0:01:15.8]} 20. Nc1 {[%clk 0:01:58.6]} 20... h4 {[%clk 0:01:15]} 21. Ne4 {[%clk
0:01:08.6]} 21... hxg3+ {[%clk 0:01:15.2]} 22. Nxg3 {[%clk 0:01:09.7]} 22... Bd6
{[%clk 0:01:16.5]} 23. Bxd5 {[%clk 0:00:56.4]} 23... Qxd5 {[%clk 0:01:17]} 24.
Be3 {[%clk 0:00:56.4]} 24... Ne7 {[%clk 0:01:06.3]} 25. Rg1 {[%clk 0:00:55.9]}
25... Bc6 {[%clk 0:01:03]} 26. Qg4 {[%clk 0:00:52.6]} 26... Ng6 {[%clk
0:01:00.5]} 27. h4 {[%clk 0:00:40.5]} 27... Rb5 {[%clk 0:00:56.2]} 28. h5 {[%clk
0:00:40.8]} 28... Ne7 {[%clk 0:00:53.9]} 29. Nce2 {[%clk 0:00:27]} 29... Kf8
{[%clk 0:00:41]} 30. h6 {[%clk 0:00:26.1]} 30... gxh6 {[%clk 0:00:39.2]} 31. Qh4
{[%clk 0:00:23.4]} 31... Ng6 {[%clk 0:00:35.5]} 32. Qf6 {[%clk 0:00:16.7]} 32...
Ke8 {[%clk 0:00:27.1]} 33. f5 {[%clk 0:00:15.5]} 33... exf5 {[%clk 0:00:21.6]}
34. Bxh6 {[%clk 0:00:16]} 34... Kd7 {[%clk 0:00:21.4]} 35. Raa1 {[%clk 0:00:16]}
35... Rh8 {[%clk 0:00:22]} 36. Qg7 {[%clk 0:00:15.6]} 36... Bf8 {[%clk
0:00:19.4]} 37. Qf6 {[%clk 0:00:11.4]} 37... Rxh6+ {[%clk 0:00:20.2]} 38. Nh5
{[%clk 0:00:11.8]} 38... Rxh5+ {[%clk 0:00:21.6]} 39. Kg3 {[%clk 0:00:13.3]}
39... Qf3# {[%clk 0:00:22.8]} 0-1

[Event "*** Titled Tuesday Blitz"]
[Site "Chess.com"]
[Date "2020.01.07"]
[Round "4"]
[White "newauto"]
[Black "ahachess"]
[Result "0-1"]
[WhiteElo "2021"]
[BlackElo "2259"]
[TimeControl "180+2"]
[EndTime "13:54:51 PST"]
[Termination "ahachess won on time"]

1. e4 {[%clk 0:03:01.9]} 1... c5 {[%clk 0:03:00.2]} 2. f4 {[%clk 0:03:02.1]}
2... g6 {[%clk 0:02:58.9]} 3. Nf3 {[%clk 0:03:03.2]} 3... Bg7 {[%clk 0:03:00.2]}
4. Bc4 {[%clk 0:03:01.9]} 4... e6 {[%clk 0:03:00.1]} 5. Nc3 {[%clk 0:03:01.4]}
5... Ne7 {[%clk 0:03:00.1]} 6. e5 {[%clk 0:03:01.7]} 6... O-O {[%clk 0:02:50.7]}
7. Ne4 {[%clk 0:02:59.3]} 7... b6 {[%clk 0:02:37.3]} 8. d4 {[%clk 0:02:52]} 8...
Bb7 {[%clk 0:02:36.8]} 9. Nd6 {[%clk 0:02:51.1]} 9... Bd5 {[%clk 0:02:31.2]} 10.
Bxd5 {[%clk 0:02:40.6]} 10... exd5 {[%clk 0:02:04.4]} 11. O-O {[%clk 0:02:36.2]}
11... Nbc6 {[%clk 0:02:02.9]} 12. c3 {[%clk 0:02:33.4]} 12... c4 {[%clk
0:01:48.4]} 13. b3 {[%clk 0:02:10.9]} 13... cxb3 {[%clk 0:01:30.1]} 14. axb3
{[%clk 0:02:08.5]} 14... a6 {[%clk 0:01:21.3]} 15. Ba3 {[%clk 0:02:08]} 15...
Qc7 {[%clk 0:01:19.3]} 16. Qd2 {[%clk 0:01:53.4]} 16... Nc8 {[%clk 0:01:07.8]}
17. Nxc8 {[%clk 0:01:37.8]} 17... Rfxc8 {[%clk 0:01:09.7]} 18. Bd6 {[%clk
0:01:37.9]} 18... Qd8 {[%clk 0:01:10.3]} 19. b4 {[%clk 0:01:31.6]} 19... Ne7
{[%clk 0:01:04.8]} 20. Qd3 {[%clk 0:01:23.3]} 20... Nf5 {[%clk 0:01:04.7]} 21.
Rxa6 {[%clk 0:01:16.7]} 21... Rxa6 {[%clk 0:00:54.6]} 22. Qxa6 {[%clk 0:01:17]}
22... Rxc3 {[%clk 0:00:54.8]} 23. Qa2 {[%clk 0:00:53]} 23... Qc8 {[%clk
0:00:49.7]} 24. Qxd5 {[%clk 0:00:50]} 24... Ne3 {[%clk 0:00:48.7]} 25. Qa2
{[%clk 0:00:45.7]} 25... Rc2 {[%clk 0:00:49.5]} 26. Qb3 {[%clk 0:00:41]} 26...
Nxf1 {[%clk 0:00:49.8]} 27. Kxf1 {[%clk 0:00:40.2]} 27... Qa6+ {[%clk
0:00:43.7]} 28. b5 {[%clk 0:00:16.4]} 28... Qa1+ {[%clk 0:00:43.9]} 29. Ne1
{[%clk 0:00:16.9]} 29... Rc1 {[%clk 0:00:44.9]} 30. Qb4 {[%clk 0:00:15.9]} 30...
Rb1 {[%clk 0:00:33.4]} 31. Qd2 {[%clk 0:00:15]} 31... Qa4 {[%clk 0:00:32.9]} 32.
f5 {[%clk 0:00:13.8]} 32... Qxb5+ {[%clk 0:00:33.1]} 33. Kg1 {[%clk 0:00:12.5]}
33... Bh6 {[%clk 0:00:32.8]} 34. Qc3 {[%clk 0:00:09.1]} 34... Rc1 {[%clk
0:00:23.2]} 35. Qg3 {[%clk 0:00:06.8]} 35... Qe2 {[%clk 0:00:21.8]} 36. Bb4
{[%clk 0:00:07]} 36... Be3+ {[%clk 0:00:21.6]} 0-1

[Event "*** Titled Tuesday Blitz"]
[Site "Chess.com"]
[Date "2020.01.07"]
[Round "4"]
[White "dragos420"]
[Black "crazy_machine"]
[Result "0-1"]
[WhiteElo "2432"]
[BlackElo "2649"]
[TimeControl "180+2"]
[EndTime "13:54:53 PST"]
[Termination "crazy_machine won by resignation"]

1. e4 {[%clk 0:02:57.8]} 1... c6 {[%clk 0:03:00.3]} 2. d4 {[%clk 0:02:52.4]}
2... d5 {[%clk 0:03:02.2]} 3. exd5 {[%clk 0:02:54.3]} 3... cxd5 {[%clk
0:03:03.6]} 4. Bd3 {[%clk 0:02:55.5]} 4... Nc6 {[%clk 0:03:05]} 5. c3 {[%clk
0:02:56.7]} 5... Qc7 {[%clk 0:03:06.6]} 6. Ne2 {[%clk 0:02:52.6]} 6... Bg4
{[%clk 0:03:07.7]} 7. h3 {[%clk 0:02:53.4]} 7... Bh5 {[%clk 0:03:08.1]} 8. O-O
{[%clk 0:02:54.4]} 8... e6 {[%clk 0:03:09.2]} 9. Qc2 {[%clk 0:02:52.5]} 9... Bd6
{[%clk 0:03:01.5]} 10. f4 {[%clk 0:02:37.7]} 10... Nge7 {[%clk 0:03:00.4]} 11.
g4 {[%clk 0:02:20.7]} 11... Bg6 {[%clk 0:03:01.6]} 12. f5 {[%clk 0:02:21.8]}
12... exf5 {[%clk 0:03:03.5]} 13. gxf5 {[%clk 0:02:23.7]} 13... Bh5 {[%clk
0:03:05]} 14. Nf4 {[%clk 0:02:19.9]} 14... g6 {[%clk 0:03:05.1]} 15. f6 {[%clk
0:02:11.7]} 15... Nc8 {[%clk 0:02:49.7]} 16. Nxd5 {[%clk 0:01:58.6]} 16... Qd7
{[%clk 0:02:44.2]} 17. Re1+ {[%clk 0:01:45.6]} 17... Kd8 {[%clk 0:02:44.3]} 18.
Qg2 {[%clk 0:01:45.6]} 18... Re8 {[%clk 0:02:38.9]} 19. Rxe8+ {[%clk 0:01:37.4]}
19... Qxe8 {[%clk 0:02:40.8]} 20. Nd2 {[%clk 0:01:28.5]} 20... Qe1+ {[%clk
0:02:37.9]} 21. Nf1 {[%clk 0:01:30]} 21... Nb6 {[%clk 0:02:37.6]} 22. Bf4 {[%clk
0:01:22.9]} 22... Qxa1 {[%clk 0:02:36.1]} 23. Bxd6 {[%clk 0:01:24.1]} 23... Qd1
{[%clk 0:02:21.1]} 24. Be7+ {[%clk 0:01:14.3]} 24... Kc8 {[%clk 0:01:59.1]} 25.
Nxb6+ {[%clk 0:01:10.7]} 25... axb6 {[%clk 0:02:00.4]} 26. Be4 {[%clk
0:01:12.6]} 26... Be2 {[%clk 0:01:18.6]} 27. Bxc6 {[%clk 0:01:07]} 27... Bxf1
{[%clk 0:01:11.4]} 28. Bd7+ {[%clk 0:00:35.7]} 28... Kc7 {[%clk 0:01:09.9]} 29.
Qxf1 {[%clk 0:00:04]} 29... Qxf1+ {[%clk 0:01:11.8]} 30. Kxf1 {[%clk 0:00:05.7]}
30... Kxd7 {[%clk 0:01:13.4]} 31. a3 {[%clk 0:00:06.9]} 31... Ra5 {[%clk
0:01:14.9]} 32. Kg2 {[%clk 0:00:04.6]} 32... Rf5 {[%clk 0:01:16.3]} 33. Kg3
{[%clk 0:00:05.4]} 33... Rf1 {[%clk 0:01:16.7]} 34. c4 {[%clk 0:00:05.1]} 34...
Rc1 {[%clk 0:01:16.1]} 35. c5 {[%clk 0:00:05.8]} 35... bxc5 {[%clk 0:01:15.5]}
36. dxc5 {[%clk 0:00:07.2]} 36... Ke6 {[%clk 0:01:17]} 37. Kg4 {[%clk
0:00:07.5]} 37... h6 {[%clk 0:01:10.8]} 38. b4 {[%clk 0:00:08.3]} 38... Rc4+
{[%clk 0:01:11.4]} 39. Kf3 {[%clk 0:00:09]} 39... Rc3+ {[%clk 0:01:12.8]} 40.
Ke4 {[%clk 0:00:09.7]} 40... Rxa3 {[%clk 0:01:13.6]} 41. b5 {[%clk 0:00:11.6]}
41... Ra4+ {[%clk 0:01:14.6]} 42. Kd3 {[%clk 0:00:12.7]} 42... Kd5 {[%clk
0:01:16.1]} 43. Bf8 {[%clk 0:00:08.9]} 43... h5 {[%clk 0:01:05.8]} 44. c6 {[%clk
0:00:07]} 44... bxc6 {[%clk 0:01:05.3]} 45. b6 {[%clk 0:00:08.9]} 45... c5
{[%clk 0:01:06.8]} 0-1

[Event "*** Titled Tuesday Blitz"]
[Site "Chess.com"]
[Date "2020.01.07"]
[Round "4"]
[White "AlexandraBotez"]
[Black "VFernandezB"]
[Result "1-0"]
[WhiteElo "2119"]
[BlackElo "2254"]
[TimeControl "180+2"]
[EndTime "13:54:54 PST"]
[Termination "AlexandraBotez won by resignation"]

1. d4 {[%clk 0:03:01.9]} 1... Nf6 {[%clk 0:02:58.5]} 2. Bf4 {[%clk 0:02:57.3]}
2... g6 {[%clk 0:02:58.9]} 3. Nf3 {[%clk 0:02:58.2]} 3... Bg7 {[%clk 0:03:00.3]}
4. e3 {[%clk 0:02:59.3]} 4... d6 {[%clk 0:03:01.4]} 5. Nc3 {[%clk 0:03:00.7]}
5... O-O {[%clk 0:03:02.8]} 6. Be2 {[%clk 0:03:01.9]} 6... c5 {[%clk 0:03:04.1]}
7. dxc5 {[%clk 0:03:02.6]} 7... dxc5 {[%clk 0:03:04.7]} 8. Qxd8 {[%clk
0:03:03.4]} 8... Rxd8 {[%clk 0:03:05.8]} 9. O-O {[%clk 0:03:05.3]} 9... Nc6
{[%clk 0:03:06.2]} 10. h3 {[%clk 0:03:05.2]} 10... Bf5 {[%clk 0:03:06.5]} 11.
Rac1 {[%clk 0:02:54]} 11... Nb4 {[%clk 0:03:07]} 12. a3 {[%clk 0:02:55.5]} 12...
Nbd5 {[%clk 0:03:03.9]} 13. Be5 {[%clk 0:02:28.7]} 13... Nxc3 {[%clk 0:03:02]}
14. Bxc3 {[%clk 0:02:29.2]} 14... Ne4 {[%clk 0:03:00.3]} 15. Bxg7 {[%clk
0:02:28]} 15... Kxg7 {[%clk 0:03:01.4]} 16. g4 {[%clk 0:02:25.5]} 16... Be6
{[%clk 0:03:01]} 17. Rfd1 {[%clk 0:02:24.3]} 17... h6 {[%clk 0:02:59.9]} 18. Kg2
{[%clk 0:02:20]} 18... f5 {[%clk 0:02:58.7]} 19. Ne5 {[%clk 0:02:13.3]} 19...
Kf6 {[%clk 0:02:54.2]} 20. f4 {[%clk 0:02:06.9]} 20... fxg4 {[%clk 0:02:53.7]}
21. hxg4 {[%clk 0:01:57.8]} 21... g5 {[%clk 0:02:54.7]} 22. Kf3 {[%clk 0:01:47]}
22... Nd6 {[%clk 0:02:52.5]} 23. Rh1 {[%clk 0:01:46.5]} 23... Kg7 {[%clk
0:02:47.8]} 24. c4 {[%clk 0:01:38.2]} 24... Rf8 {[%clk 0:02:45.1]} 25. f5 {[%clk
0:01:30.3]} 25... b5 {[%clk 0:02:41.3]} 26. e4 {[%clk 0:01:26.8]} 26... bxc4
{[%clk 0:02:39]} 27. Bxc4 {[%clk 0:01:26.4]} 27... Bxc4 {[%clk 0:02:37.6]} 28.
Nxc4 {[%clk 0:01:27.4]} 28... Rab8 {[%clk 0:02:38.6]} 29. Nxd6 {[%clk 0:01:26]}
29... exd6 {[%clk 0:02:39.6]} 30. Rc2 {[%clk 0:01:22.4]} 30... Rb3+ {[%clk
0:02:39.8]} 31. Kg2 {[%clk 0:01:22.6]} 31... Re8 {[%clk 0:02:41]} 32. Re1 {[%clk
0:01:22.6]} 32... Rd3 {[%clk 0:02:38]} 33. Rce2 {[%clk 0:01:08.6]} 33... Re5
{[%clk 0:02:38.2]} 34. b4 {[%clk 0:01:05.6]} 34... c4 {[%clk 0:02:38.5]} 35. Rc1
{[%clk 0:01:06.1]} 35... c3 {[%clk 0:02:39.6]} 36. Rcc2 {[%clk 0:01:04.6]} 36...
Kf6 {[%clk 0:02:33.7]} 37. Kf2 {[%clk 0:01:03.5]} 37... a5 {[%clk 0:02:34.3]}
38. Re3 {[%clk 0:01:04.6]} 38... Rd4 {[%clk 0:02:31.3]} 39. bxa5 {[%clk
0:01:02.1]} 39... Rxa5 {[%clk 0:02:31.3]} 40. Rcxc3 {[%clk 0:01:00.1]} 40... Ke5
{[%clk 0:02:32.5]} 41. Rc8 {[%clk 0:00:58.5]} 41... Kf4 {[%clk 0:02:31.7]} 42.
f6 {[%clk 0:00:52.6]} 42... Ra7 {[%clk 0:02:26.5]} 43. f7 {[%clk 0:00:53.6]}
43... Rd2+ {[%clk 0:02:23.3]} 44. Ke1 {[%clk 0:00:52.6]} 44... Kxe3 {[%clk
0:02:18.6]} 45. f8=Q {[%clk 0:00:51.1]} 45... Rb7 {[%clk 0:02:19.9]} 46. Rc1
{[%clk 0:00:45.6]} 46... Rbb2 {[%clk 0:02:19.6]} 47. Rc3+ {[%clk 0:00:40]} 47...
Kxe4 {[%clk 0:02:16.3]} 48. Qf5+ {[%clk 0:00:30.2]} 48... Kd4 {[%clk 0:02:16.7]}
49. Rc1 {[%clk 0:00:26.8]} 49... Re2+ {[%clk 0:02:17.1]} 50. Kf1 {[%clk
0:00:27.8]} 50... Rbd2 {[%clk 0:02:15.2]} 51. Qf6+ {[%clk 0:00:25.7]} 51... Ke3
{[%clk 0:02:12.8]} 52. Rc3+ {[%clk 0:00:23.4]} 52... Ke4 {[%clk 0:02:14]} 53.
Qf5+ {[%clk 0:00:22.7]} 53... Kd4 {[%clk 0:02:15.1]} 54. Rc1 {[%clk 0:00:21.1]}
54... Re4 {[%clk 0:02:11.6]} 55. Qf6+ {[%clk 0:00:19.9]} 55... Kd5 {[%clk
0:02:10.5]} 56. Qf7+ {[%clk 0:00:16.4]} 56... Kd4 {[%clk 0:02:10.9]} 57. Qc4+
{[%clk 0:00:16]} 57... Ke3 {[%clk 0:02:04]} 58. Qc3+ {[%clk 0:00:17]} 58... Kf4
{[%clk 0:02:05.2]} 59. Qxd2+ {[%clk 0:00:17.6]} 59... Re3 {[%clk 0:02:06.7]} 60.
Re1 {[%clk 0:00:18.2]} 60... Kxg4 {[%clk 0:02:06.4]} 61. Qxe3 {[%clk 0:00:17.3]}
61... h5 {[%clk 0:02:08.3]} 62. Qe2+ {[%clk 0:00:17.3]} 62... Kg3 {[%clk
0:02:09.3]} 63. Qe4 {[%clk 0:00:17.2]} 63... g4 {[%clk 0:02:11.2]} 64. Re3+
{[%clk 0:00:18.4]} 64... Kh4 {[%clk 0:02:12.5]} 65. Qh1+ {[%clk 0:00:19.3]}
65... Kg5 {[%clk 0:02:13.8]} 66. Rd3 {[%clk 0:00:19.5]} 66... Kf4 {[%clk
0:02:15.7]} 67. Rxd6 {[%clk 0:00:20.7]} 67... g3 {[%clk 0:02:16.8]} 68. Qxh5
{[%clk 0:00:20.4]} 68... Ke3 {[%clk 0:02:17.7]} 69. Qg4 {[%clk 0:00:19.7]} 69...
g2+ {[%clk 0:02:18.1]} 70. Qxg2 {[%clk 0:00:21.2]} 70... Kf4 {[%clk 0:02:19.2]}
71. Rf6+ {[%clk 0:00:22.5]} 1-0